fUST/lending_fUST_20240830
["ID","MTS","AMOUNT","RATE_DAILY","PERIOD"]
[336647544,1724997055191,-232.821959,0.00026832,7]
[336647546,1724997055200,-392.464828,0.00026832,7]
[336647548,1724997055209,-174.313585,0.00026832,7]
[336647550,1724997055219,-392.464828,0.00026832,7]
[336647552,1724997055228,-151.0,0.00026832,7]
[336647555,1724997055240,-151.0,0.00026832,7]
[336647557,1724997055250,-151.0,0.00026832,7]
[336647559,1724997055260,-151.0,0.00026832,7]
[336647561,1724997055269,-151.0,0.00026833,7]
[336647563,1724997055279,-341.013675,0.00026833,7]
[336647565,1724997055288,-341.013675,0.00026833,7]
[336647567,1724997055303,-2294.15,0.00026851,5]
[336647570,1724997055320,-3490.78,0.00026851,5]
[336647572,1724997055334,-5579.14,0.00026851,5]
[336647575,1724997055350,-1360.61,0.00026851,5]
[336647577,1724997055365,-1189.51,0.00026851,5]
[336647580,1724997055382,-11342.43,0.00026873,5]
[336647583,1724997055398,-1705.93,0.00026873,5]
[336647586,1724997055415,-1448.5,0.00026873,5]
[336647588,1724997055430,-527.35,0.00026873,5]
[336647590,1724997055443,-2966.83,0.00026873,5]
[336647593,1724997055461,-743.69,0.00026873,5]
[336647596,1724997055477,-1867.78,0.00026873,5]
[336647598,1724997055491,-2270.01,0.00026873,5]
[336647601,1724997055505,-600.0,0.00026898,2]
[336647603,1724997055519,-150.112233,0.00027,5]
[336647606,1724997055534,-500.0,0.00027106,5]
[336647609,1724997055548,-2294.15,0.00027125,5]
[336647611,1724997055564,-3490.78,0.00027125,5]
[336647614,1724997055579,-5579.14,0.00027125,5]
[336647616,1724997055590,-1360.61,0.00027125,5]
[336647618,1724997055601,-1189.51,0.00027125,5]
[336647621,1724997055616,-500.0,0.00027145,2]
[336647624,1724997055631,-11342.43,0.00027147,5]
[336647626,1724997055643,-1705.93,0.00027147,5]
[336647628,1724997055658,-1448.5,0.00027147,5]
[336647631,1724997055672,-527.35,0.00027147,5]
[336647633,1724997055685,-2966.83,0.00027147,5]
[336647635,1724997055698,-743.69,0.00027147,5]
[336647638,1724997055710,-1867.78,0.00027147,5]
[336647640,1724997055723,-2270.01,0.00027147,5]
[336647642,1724997055736,-500.0,0.00027173,2]
[336647645,1724997055748,-193.195459,0.00027173,7]
[336647647,1724997055761,-1400.0,0.00027208,2]
[336647649,1724997055773,-1400.0,0.00027273,2]
[336647651,1724997055785,-598.89,0.000273,14]
[336647653,1724997055797,-299.66,0.000273,14]
[336647656,1724997055810,-224.16,0.0002738,5]
[336647658,1724997055822,-708.599085,0.0002738,7]
[336647660,1724997055834,-708.599085,0.0002738,7]
[336647663,1724997055845,-151.0,0.0002738,7]
[336647665,1724997055859,-151.88765,0.0002738,7]
[336647667,1724997055871,-251.716699,0.0002738,7]
[336647670,1724997055884,-251.716699,0.0002738,7]
[336647672,1724997055897,-271.592288,0.0002738,7]
[336647674,1724997055909,-271.592288,0.0002738,7]
[336647676,1724997055920,-151.0,0.0002738,7]
[336647679,1724997055933,-179.117021,0.0002738,7]
[336647681,1724997055945,-179.117021,0.0002738,7]
[336647683,1724997055958,-3300.497661,0.0002738,7]
[336647686,1724997055970,-3300.497661,0.0002738,7]
[336647688,1724997055983,-151.0,0.0002738,7]
[336647690,1724997055995,-151.0,0.0002738,7]
[336647693,1724997056007,-206.386432,0.0002738,7]
[336647695,1724997056020,-206.386432,0.0002738,7]
[336647697,1724997056033,-233.02035,0.0002738,7]
[336647700,1724997056046,-233.02035,0.0002738,7]
[336647702,1724997056058,-151.0,0.00027381,7]
[336647704,1724997056067,-151.726682,0.00027381,7]
[336647706,1724997056077,-151.0,0.00027381,7]
[336647708,1724997056086,-151.0,0.00027381,7]
[336647710,1724997056095,-267.098443,0.00027381,7]
[336647712,1724997056105,-267.098443,0.00027381,7]
[336647714,1724997056114,-151.0,0.00027381,7]
[336647716,1724997056124,-240.968781,0.00027381,7]
[336647718,1724997056133,-151.0,0.00027397,7]
[336647720,1724997056143,-255.58708,0.00027397,7]
[336647722,1724997056152,-180.862677,0.00027397,7]
[336647724,1724997056162,-180.862677,0.00027397,7]
[336647726,1724997056171,-151.0,0.00027397,7]
[336647728,1724997056180,-247.22692,0.00027397,7]
[336647730,1724997056190,-500.0,0.00027397,2]
[336647732,1724997056199,-500.0,0.00027397,2]
[336647748,1724997056343,-500.0,0.00027397,2]
[336647751,1724997056359,-500.0,0.00027397,5]
[336647753,1724997056368,-500.0,0.00027397,5]
[336647755,1724997056379,-500.0,0.00027397,5]
[336647757,1724997056389,-500.0,0.00027397,5]
[336647758,1724997056398,-500.0,0.00027397,5]
[336647759,1724997056408,-500.0,0.00027397,5]
[336647760,1724997056417,-500.0,0.00027397,5]
[336647761,1724997056427,-500.0,0.00027397,5]
[336647762,1724997056436,-500.0,0.00027397,5]
[336647763,1724997056446,-609.9281248,0.00027397,5]
[336647764,1724997056456,-395.10521127,0.00027397,2]
[336647765,1724997056469,-2294.20713312,0.00027399,5]
[336647766,1724997056478,-3490.78234686,0.00027399,5]
[336647767,1724997056487,-5579.35358874,0.00027399,5]
[336647769,1724997056496,-1360.67962284,0.00027399,5]
[336647771,1724997056506,-1189.69486987,0.00027399,5]
[336647774,1724997056516,-1400.0,0.00027407,2]
[336647776,1724997056526,-11342.54359867,0.00027421,5]
[336647778,1724997056535,-1706.13186745,0.00027421,5]
[336647779,1724997056544,-1448.61,0.00027421,5]
[336647781,1724997056555,-527.55060562,0.00027421,5]
[336647783,1724997056565,-2966.97324757,0.00027421,5]
[336647785,1724997056575,-743.90173707,0.00027421,5]
[336647788,1724997056584,-1867.92229746,0.00027421,5]
[336647789,1724997056593,-2270.1743555,0.00027421,5]
[336647792,1724997056603,-150.112233,0.000275,8]
[336647794,1724997056612,-1400.0,0.00027543,2]
[336647796,1724997056621,-600.0,0.00027617,2]
[336647798,1724997056630,-300.148756,0.00027654,7]
[336647799,1724997056640,-151.0,0.00027654,7]
[336647801,1724997056650,-232.821959,0.00027654,7]
[336647803,1724997056660,-151.0,0.00027654,7]
[336647805,1724997056669,-232.821959,0.00027654,7]
[336647807,1724997056678,-392.464828,0.00027654,7]
[336647809,1724997056688,-392.464828,0.00027654,7]
[336647811,1724997056697,-215.323103,0.00027654,7]
[336647813,1724997056707,-151.0,0.00027654,7]
[336647815,1724997056716,-151.0,0.00027654,7]
[336647817,1724997056725,-228.135694,0.00027654,7]
[336647819,1724997056734,-151.0,0.00027655,7]
[336647821,1724997056743,-151.0,0.00027655,7]
[336647823,1724997056752,-500.0,0.00027684,2]
[336647825,1724997056761,-500.0,0.00027723,2]
[336647827,1724997056770,-205.853206,0.00027725,7]
[336647829,1724997056779,-205.853206,0.00027725,7]
[336647831,1724997056790,-151.0,0.00027725,7]
[336647833,1724997056800,-151.0,0.00027725,7]
[336647835,1724997056809,-151.0,0.00027725,7]
[336647837,1724997056820,-341.013675,0.00027725,7]
[336647839,1724997056829,-341.013675,0.00027725,7]
[336647841,1724997056839,-500.0,0.00027875,2]
[336647843,1724997056849,-500.0,0.00027898,2]
[336647846,1724997056863,-310.0,0.0002793,30]
[336647848,1724997056873,-310.0,0.0002793,30]
[336647850,1724997056882,-310.0,0.0002793,30]
[336647852,1724997056891,-310.0,0.0002793,30]
[336647854,1724997056901,-310.0,0.0002793,30]
[336647856,1724997056911,-310.0,0.0002793,30]
[336647858,1724997056921,-310.0,0.0002793,30]
[336647860,1724997056931,-310.0,0.0002793,30]
[336647862,1724997056942,-310.0,0.0002793,30]
[336647864,1724997056953,-310.0,0.0002793,30]
[336647866,1724997056962,-310.0,0.0002793,30]
[336647868,1724997056972,-310.0,0.0002793,30]
[336647870,1724997056981,-310.0,0.0002793,30]
[336647872,1724997056992,-310.0,0.0002793,30]
[336647874,1724997057001,-172.444347,0.0002793,30]
[336647876,1724997057012,-823.0,0.00027963,2]
[336647879,1724997057023,-1400.0,0.00028003,2]
[336647881,1724997057034,-500.0,0.00028123,2]
[336647883,1724997057044,-600.0,0.00028183,2]
[336647885,1724997057055,-1400.0,0.00028184,2]
[336647887,1724997057065,-151.0,0.000282,7]
[336647889,1724997057074,-151.0,0.000282,7]
[336647891,1724997057083,-151.0,0.000282,7]
[336647893,1724997057093,-267.098443,0.000282,7]
[336647895,1724997057102,-267.098443,0.000282,7]
[336647897,1724997057113,-151.0,0.000282,7]
[336647899,1724997057124,-500.0,0.00028201,2]
[336647901,1724997057134,-151.0,0.00028202,7]
[336647903,1724997057145,-240.968781,0.00028202,7]
[336647906,1724997057156,-232.821959,0.00028202,7]
[336647908,1724997057167,-151.0,0.00028202,7]
[336647910,1724997057177,-232.821959,0.00028202,7]
[336647912,1724997057187,-392.464828,0.00028202,7]
[336647914,1724997057197,-392.464828,0.00028202,7]
[336647916,1724997057207,-151.0,0.00028202,7]
[336647918,1724997057218,-151.0,0.00028202,7]
[336647920,1724997057227,-151.0,0.00028202,7]
[336647922,1724997057237,-180.862677,0.00028202,7]
[336647924,1724997057248,-180.862677,0.00028202,7]
[336647926,1724997057260,-151.0,0.00028202,7]
[336647928,1724997057270,-708.599085,0.00028202,7]
[336647930,1724997057280,-708.599085,0.00028202,7]
[336647932,1724997057289,-151.0,0.00028202,7]
[336647934,1724997057302,-251.716699,0.00028202,7]
[336647936,1724997057311,-251.716699,0.00028202,7]
[336647938,1724997057321,-271.592288,0.00028202,7]
[336647940,1724997057330,-271.592288,0.00028202,7]
[336647942,1724997057339,-151.0,0.00028202,7]
[336647944,1724997057349,-179.117021,0.00028202,7]
[336647946,1724997057358,-179.117021,0.00028202,7]
[336647948,1724997057368,-3300.497661,0.00028202,7]
[336647950,1724997057378,-3300.497661,0.00028202,7]
[336647952,1724997057388,-151.0,0.00028202,7]
[336647954,1724997057397,-206.386432,0.00028202,7]
[336647956,1724997057407,-206.386432,0.00028202,7]
[336647959,1724997057418,-151.0,0.00028203,7]
[336647961,1724997057429,-151.0,0.00028203,7]
[336647963,1724997057439,-68.71465951,0.00028225,2]
[336648037,1724997058131,-1168.41,0.00024385,5]
[336648039,1724997058141,-1025.69425374,0.00024659,5]
[336649472,1724997072921,158.506341,0.00014247,2]
[336655692,1724997139267,226.855933,0.000191,2]
[336656718,1724997270351,213.338451,0.0001863,2]
[336656720,1724997702718,174.9964494,0.00019949,2]
[336656721,1724997741240,1746.88179992,0.00019982,2]
[336656722,1724997755519,600.0,0.00018867,2]
[336656723,1724997762241,202.671528,0.0001863,2]
[336656724,1724998167062,158.506341,0.00014247,2]
[336656788,1724998238069,-1954.7994104,0.0002009,2]
[336656790,1724998238079,-573.440377,0.00020113,2]
[336656792,1724998238088,-150.0,0.00021,2]
[336656802,1724998238240,-437.40128114,0.00021017,2]
[336656803,1724998238250,-483.11,0.00021107,3]
[336656804,1724998238260,-241.56,0.00021107,3]
[336656805,1724998238269,-724.69,0.00021107,3]
[336656806,1724998238279,-300.0,0.00021114,2]
[336656807,1724998238290,-500.0,0.00021115,2]
[336656808,1724998238300,-500.0,0.00021115,2]
[336656810,1724998238309,-500.0,0.00021115,2]
[336656812,1724998238319,-266.78210932,0.00021115,2]
[336656813,1724998238328,-500.0,0.00021115,2]
[336656814,1724998238337,-500.0,0.00021115,2]
[336656815,1724998238347,-500.0,0.00021115,2]
[336656816,1724998238356,-500.0,0.00021115,2]
[336656817,1724998238365,-500.0,0.00021115,2]
[336656818,1724998238375,-500.0,0.00021115,2]
[336656819,1724998238384,-500.0,0.00021115,2]
[336656820,1724998238394,-500.0,0.00021115,2]
[336656821,1724998238403,-500.0,0.00021116,2]
[336656822,1724998238412,-500.0,0.00021116,2]
[336656823,1724998238421,-500.0,0.00021116,2]
[336656824,1724998238431,-566.62755411,0.00021116,2]
[336656825,1724998238440,-500.0,0.00021116,2]
[336656826,1724998238450,-500.0,0.00021116,2]
[336656827,1724998238459,-500.0,0.00021116,2]
[336656828,1724998238468,-500.0,0.00021116,2]
[336656829,1724998238478,-500.0,0.00021116,2]
[336656830,1724998238487,-503.57369598,0.00021116,2]
[336656831,1724998238496,-500.0,0.00021116,2]
[336656832,1724998238506,-500.0,0.00021116,2]
[336656833,1724998238515,-500.0,0.00021116,2]
[336656834,1724998238525,-500.0,0.00021116,2]
[336656835,1724998238535,-500.0,0.00021116,2]
[336656836,1724998238547,-500.0,0.00021116,2]
[336656837,1724998238557,-500.0,0.00021116,2]
[336656838,1724998238566,-500.0,0.00021116,2]
[336656839,1724998238580,-500.0,0.00021116,2]
[336656840,1724998238590,-500.0,0.00021116,2]
[336656841,1724998238601,-500.0,0.00021116,2]
[336656842,1724998238611,-500.0,0.00021116,2]
[336656843,1724998238621,-500.0,0.00021116,2]
[336656844,1724998238632,-500.0,0.00021116,2]
[336656845,1724998238642,-500.0,0.00021116,2]
[336656846,1724998238652,-500.0,0.00021116,2]
[336656847,1724998238661,-500.0,0.00021116,2]
[336656848,1724998238671,-500.0,0.00021116,2]
[336656849,1724998238681,-500.0,0.00021116,2]
[336656850,1724998238690,-500.0,0.00021116,2]
[336656851,1724998238699,-500.0,0.00021116,2]
[336656852,1724998238709,-500.59762837,0.00021116,2]
[336656853,1724998238718,-500.0,0.00021116,2]
[336656854,1724998238727,-500.0,0.00021116,2]
[336656855,1724998238737,-500.0,0.00021116,2]
[336656856,1724998238746,-500.0,0.00021116,2]
[336656857,1724998238756,-500.0,0.00021116,2]
[336656858,1724998238765,-500.0,0.00021116,2]
[336656859,1724998238774,-500.0,0.00021116,2]
[336656860,1724998238783,-500.0,0.00021116,2]
[336656861,1724998238792,-500.0,0.00021116,2]
[336656862,1724998238802,-972.48,0.00021116,2]
[336656863,1724998238811,-641.8,0.00021116,2]
[336656864,1724998238820,-500.0,0.00021116,2]
[336656865,1724998238829,-500.0,0.00021116,2]
[336656866,1724998238839,-500.0,0.00021116,2]
[336656867,1724998238848,-500.0,0.00021116,2]
[336656868,1724998238857,-500.0,0.00021116,2]
[336656869,1724998238867,-500.0,0.00021116,2]
[336656870,1724998238876,-500.0,0.00021116,2]
[336656871,1724998238885,-500.0,0.00021116,2]
[336656872,1724998238895,-500.0,0.00021116,2]
[336656873,1724998238904,-500.0,0.00021116,2]
[336656874,1724998238914,-500.0,0.00021116,2]
[336656875,1724998238923,-500.0,0.00021117,2]
[336656876,1724998238933,-500.0,0.00021117,2]
[336656877,1724998238942,-500.0,0.00021117,2]
[336656878,1724998238952,-500.0,0.00021117,2]
[336656879,1724998238963,-500.0,0.00021117,2]
[336656880,1724998238972,-630.80367971,0.00021117,2]
[336656881,1724998238981,-501.72010827,0.00021117,2]
[336656882,1724998238991,-500.0,0.00021117,2]
[336656883,1724998239000,-500.0,0.00021117,2]
[336656884,1724998239010,-500.0,0.00021117,2]
[336656885,1724998239019,-501.23934247,0.00021117,2]
[336656886,1724998239028,-500.0,0.00021117,2]
[336656887,1724998239038,-500.0,0.00021117,2]
[336656888,1724998239047,-500.0,0.00021117,2]
[336656889,1724998239057,-500.0,0.00021117,2]
[336656890,1724998239067,-500.0,0.00021117,2]
[336656891,1724998239077,-500.0,0.00021117,2]
[336656892,1724998239087,-500.0,0.00021117,2]
[336656893,1724998239096,-500.0,0.00021117,2]
[336656894,1724998239105,-500.0,0.00021117,2]
[336656895,1724998239117,-500.0,0.00021117,2]
[336656896,1724998239126,-500.0,0.00021117,2]
[336656897,1724998239136,-500.0,0.00021117,2]
[336656898,1724998239146,-500.0,0.00021117,2]
[336656899,1724998239155,-500.0,0.00021117,2]
[336656900,1724998239164,-500.0,0.00021117,2]
[336656901,1724998239173,-343.90495402,0.00021117,2]
[336656902,1724998239183,-500.0,0.00021117,2]
[336656903,1724998239194,-500.0,0.00021117,2]
[336656904,1724998239203,-500.0,0.00021117,2]
[336656905,1724998239214,-500.0,0.00021117,2]
[336656906,1724998239223,-500.0,0.00021117,2]
[336656907,1724998239233,-500.0,0.00021117,2]
[336656908,1724998239243,-500.0,0.00021117,2]
[336656910,1724998239252,-500.0,0.00021117,2]
[336656911,1724998239262,-500.0,0.00021117,2]
[336656913,1724998239272,-500.0,0.00021117,2]
[336656914,1724998239281,-500.0,0.00021117,2]
[336656916,1724998239291,-500.0,0.00021117,2]
[336656917,1724998239301,-500.0,0.00021117,2]
[336656919,1724998239310,-500.0,0.00021117,2]
[336656920,1724998239320,-500.0,0.00021117,2]
[336656921,1724998239329,-500.0,0.00021117,2]
[336656923,1724998239339,-500.0,0.00021117,2]
[336656924,1724998239348,-500.0,0.00021117,2]
[336656926,1724998239358,-500.0,0.00021117,2]
[336656927,1724998239368,-500.0,0.00021117,2]
[336656929,1724998239378,-500.0,0.00021117,2]
[336656931,1724998239387,-500.0,0.00021117,2]
[336656934,1724998239396,-500.0,0.00021117,2]
[336656937,1724998239406,-500.0,0.00021117,2]
[336656938,1724998239415,-507.27457219,0.00021117,2]
[336656942,1724998239424,-500.0,0.00021117,2]
[336656944,1724998239434,-500.0,0.00021117,2]
[336656947,1724998239443,-390.12787206,0.00021117,2]
[336656949,1724998239452,-500.0,0.00021117,2]
[336656951,1724998239462,-500.0,0.00021117,2]
[336656954,1724998239471,-500.0,0.00021117,2]
[336656956,1724998239489,-500.0,0.00021117,2]
[336656959,1724998239502,-500.0,0.00021117,2]
[336656961,1724998239512,-500.0,0.00021117,2]
[336656963,1724998239522,-500.0,0.00021117,2]
[336656965,1724998239532,-245.43634297,0.00021117,2]
[336656967,1724998239542,-500.0,0.00021117,2]
[336656969,1724998239552,-500.0,0.00021117,2]
[336656971,1724998239562,-500.0,0.00021117,2]
[336656974,1724998239572,-500.0,0.00021117,2]
[336656976,1724998239582,-500.0,0.00021117,2]
[336656978,1724998239592,-502.73205741,0.00021117,2]
[336656980,1724998239603,-503.75109237,0.00021117,2]
[336656982,1724998239613,-520.45263567,0.00021117,2]
[336656984,1724998239624,-500.0,0.00021117,2]
[336656986,1724998239635,-500.0,0.00021117,2]
[336656988,1724998239645,-500.0,0.00021117,2]
[336656990,1724998239655,-501.65130888,0.00021117,2]
[336656992,1724998239665,-500.0,0.00021117,2]
[336656994,1724998239675,-504.65000712,0.00021117,2]
[336656997,1724998239685,-500.0,0.00021117,2]
[336656999,1724998239696,-500.0,0.00021117,2]
[336657001,1724998239706,-504.73612278,0.00021117,2]
[336657003,1724998239717,-503.2448373,0.00021117,2]
[336657005,1724998239727,-503.29649796,0.00021117,2]
[336657007,1724998239740,-500.0,0.00021117,2]
[336657009,1724998239750,-500.0,0.00021117,2]
[336657011,1724998239760,-503.97970658,0.00021117,2]
[336657014,1724998239770,-500.0,0.00021117,2]
[336657016,1724998239779,-504.80123364,0.00021117,2]
[336657018,1724998239790,-500.0,0.00021117,2]
[336657020,1724998239800,-500.0,0.00021117,2]
[336657022,1724998239809,-500.0,0.00021117,2]
[336657024,1724998239820,-500.0,0.00021117,2]
[336657026,1724998239830,-1064.97,0.00021117,2]
[336657028,1724998239840,-500.0,0.00021117,2]
[336657030,1724998239850,-500.0,0.00021117,2]
[336657032,1724998239860,-500.0,0.00021117,2]
[336657034,1724998239869,-500.0,0.00021117,2]
[336657036,1724998239879,-500.0,0.00021117,2]
[336657038,1724998239889,-500.0,0.00021117,2]
[336657040,1724998239899,-500.0,0.00021117,2]
[336657042,1724998239910,-502.28102163,0.00021117,2]
[336657044,1724998239919,-500.0,0.00021117,2]
[336657046,1724998239929,-500.0,0.00021117,2]
[336657049,1724998239939,-504.45311609,0.00021117,2]
[336657051,1724998239949,-500.0,0.00021117,2]
[336657053,1724998239959,-502.47261717,0.00021117,2]
[336657055,1724998239970,-500.0,0.00021117,2]
[336657057,1724998239980,-503.85085614,0.00021117,2]
[336657059,1724998239991,-321.68037138,0.00021117,2]
[336657061,1724998240001,-505.27949892,0.00021117,2]
[336657063,1724998240011,-500.0,0.00021117,2]
[336657065,1724998240020,-500.0,0.00021117,2]
[336657067,1724998240030,-500.0,0.00021117,2]
[336657069,1724998240039,-500.0,0.00021117,2]
[336657071,1724998240049,-500.0,0.00021117,2]
[336657074,1724998240059,-500.0,0.00021117,2]
[336657076,1724998240068,-181.57135356,0.00021117,2]
[336657078,1724998240078,-500.0,0.00021117,2]
[336657080,1724998240087,-500.0,0.00021117,2]
[336657082,1724998240097,-500.0,0.00021117,2]
[336657084,1724998240108,-500.0,0.00021117,2]
[336657086,1724998240121,-500.0,0.00021117,2]
[336657088,1724998240132,-500.0,0.00021117,2]
[336657090,1724998240141,-500.0,0.00021117,2]
[336657092,1724998240154,-500.0,0.00021117,2]
[336657094,1724998240163,-500.0,0.00021117,2]
[336657096,1724998240173,-500.0,0.00021117,2]
[336657098,1724998240183,-301.88554015,0.00021117,2]
[336657101,1724998240195,-500.0,0.00021117,2]
[336657103,1724998240205,-500.89808354,0.00021117,2]
[336657105,1724998240215,-500.0,0.00021117,2]
[336657107,1724998240225,-500.0,0.00021117,2]
[336657109,1724998240236,-500.0,0.00021117,2]
[336657111,1724998240246,-500.0,0.00021117,2]
[336657113,1724998240256,-500.0,0.00021117,2]
[336657115,1724998240266,-501.98576097,0.00021117,2]
[336657117,1724998240277,-500.0,0.00021117,2]
[336657119,1724998240286,-500.0,0.00021117,2]
[336657122,1724998240297,-500.0,0.00021117,2]
[336657124,1724998240307,-500.0,0.00021117,2]
[336657126,1724998240317,-500.0,0.00021117,2]
[336657128,1724998240327,-500.0,0.00021117,2]
[336657130,1724998240337,-500.0,0.00021117,2]
[336657132,1724998240347,-500.0,0.00021117,2]
[336657134,1724998240357,-500.0,0.00021117,2]
[336657136,1724998240367,-500.0,0.00021117,2]
[336657138,1724998240377,-500.0,0.00021117,2]
[336657140,1724998240387,-500.0,0.00021117,2]
[336657142,1724998240397,-500.0,0.00021117,2]
[336657144,1724998240407,-500.0,0.00021117,2]
[336657147,1724998240417,-500.0,0.00021117,2]
[336657149,1724998240427,-630.5265283,0.00021117,2]
[336657151,1724998240436,-500.0,0.00021117,2]
[336657153,1724998240447,-500.0,0.00021117,2]
[336657155,1724998240457,-500.0,0.00021117,2]
[336657157,1724998240467,-500.0,0.00021117,2]
[336657159,1724998240476,-500.0,0.00021117,2]
[336657161,1724998240486,-500.0,0.00021117,2]
[336657163,1724998240496,-500.0,0.00021117,2]
[336657165,1724998240505,-522.60127391,0.00021117,2]
[336657167,1724998240515,-500.87094952,0.00021117,2]
[336657169,1724998240525,-500.0,0.00021117,2]
[336657171,1724998240535,-500.0,0.00021117,2]
[336657173,1724998240544,-500.0,0.00021117,2]
[336657175,1724998240554,-524.87916956,0.00021117,2]
[336657177,1724998240564,-500.0,0.00021117,2]
[336657179,1724998240573,-500.0,0.00021117,2]
[336657181,1724998240583,-500.0,0.00021117,2]
[336657183,1724998240593,-500.0,0.00021117,2]
[336657185,1724998240603,-500.85301087,0.00021117,2]
[336657187,1724998240613,-500.0,0.00021117,2]
[336657189,1724998240623,-493.41178469,0.00021117,2]
[336657191,1724998240633,-500.0,0.00021117,2]
[336657193,1724998240642,-503.07585251,0.00021117,2]
[336657195,1724998240654,-525.63599006,0.00021117,2]
[336657198,1724998240666,-503.37005704,0.00021117,2]
[336657200,1724998240676,-500.0,0.00021117,2]
[336657202,1724998240685,-500.0,0.00021117,2]
[336657204,1724998240695,-248.55963741,0.00021117,2]
[336657206,1724998240706,-500.82052029,0.00021117,2]
[336657208,1724998240716,-500.0,0.00021117,2]
[336657210,1724998240726,-500.0,0.00021117,2]
[336657212,1724998240736,-500.0,0.00021117,2]
[336657214,1724998240746,-500.0,0.00021117,2]
[336657216,1724998240756,-547.41783955,0.00021117,2]
[336657218,1724998240766,-383.21978051,0.00021117,2]
[336657220,1724998240776,-502.06357948,0.00021117,2]
[336657222,1724998240786,-500.0,0.00021117,2]
[336657224,1724998240797,-500.0,0.00021117,2]
[336657226,1724998240807,-500.0,0.00021117,2]
[336657228,1724998240817,-500.0,0.00021118,2]
[336657230,1724998240827,-500.0,0.00021118,2]
[336657232,1724998240837,-368.86760477,0.00021118,2]
[336657234,1724998240847,-500.0,0.00021118,2]
[336657236,1724998240857,-190.59422043,0.00021118,2]
[336657238,1724998240867,-500.0,0.00021118,2]
[336657240,1724998240877,-500.0,0.00021118,2]
[336657242,1724998240887,-277.55224773,0.00021118,2]
[336657244,1724998240897,-500.0,0.00021118,2]
[336657246,1724998240907,-500.0,0.00021118,2]
[336657248,1724998240917,-500.0,0.00021118,2]
[336657250,1724998240926,-272.95304379,0.00021118,2]
[336657252,1724998240936,-500.0,0.00021118,2]
[336657254,1724998240946,-500.0,0.00021118,2]
[336657256,1724998240956,-500.0,0.00021118,2]
[336657259,1724998240966,-500.0,0.00021118,2]
[336657261,1724998240976,-500.0,0.00021118,2]
[336657263,1724998240986,-500.0,0.00021118,2]
[336657265,1724998240996,-500.0,0.00021118,2]
[336657278,1724998241119,-500.0,0.00021118,2]
[336657280,1724998241129,-237.42250817,0.00021118,2]
[336657282,1724998241139,-500.0,0.00021118,2]
[336657284,1724998241149,-500.0,0.00021118,2]
[336657286,1724998241159,-500.0,0.00021118,2]
[336657288,1724998241168,-500.0,0.00021118,2]
[336657290,1724998241177,-500.0,0.00021118,2]
[336657292,1724998241190,-316.19575572,0.00021118,2]
[336657294,1724998241201,-500.0,0.00021118,2]
[336657296,1724998241211,-500.0,0.00021118,2]
[336657298,1724998241221,-500.0,0.00021118,2]
[336657300,1724998241231,-550.0,0.00021118,2]
[336657302,1724998241240,-500.0,0.00021118,2]
[336657304,1724998241250,-500.0,0.00021118,2]